[Event "21st IPCA World Championship 2022"]
[Site "Ashdod"]
[Date "2022.05.10"]
[Round "2.6"]
[White "Campos, Eugenio"]
[Black "Babanov, Aleksandr"]
[Result "1-0"]
[ECO "B01"]
[WhiteElo "2247"]
[BlackElo "1929"]
[Annotator "TA"]
[PlyCount "71"]
[EventDate "2022.05.09"]
[EventType "swiss"]
[EventCountry "ISR"]
[SourceTitle "playchess.com"]
[Source "ChessBase"]
[SourceQuality "1"]
[TimeControl "5400+30"]

{[%evp 9,71,4,63,42,77,69,97,101,102,91,117,112,126,87,120,110,206,93,76,77,90,88,158,150,168,178,185,127,182,181,253,259,439,204,214,206,207,207,437,266,211,161,580,591,558,548,661,661,658,621,1250,1162,29988,29989,29989,29990,29993,1962,29983,29984,29989,29990,29990,29991]} 1. e4 {[%emt 0:00:06]} d5 {[%emt 0:00:46]} 2. exd5 {[%emt 0:00:15]} Qxd5 {[%emt 0:00:06]} 3. c4 {[%emt 0:00:06]} Qd8 {[%emt 0:01:12]} 4. d4 {[%emt 0:00:10]} Nf6 {[%emt 0:02:18]} 5. Nc3 {[%emt 0:01:05]} Bg4 {[%emt 0:01:35]} ({Better is} 5... e5 $11 6. Nf3 (6. dxe5 Qxd1+ 7. Nxd1 Ne4 $11) 6... exd4 7. Nxd4 (7. Qxd4 Qxd4 8. Nxd4 Bc5 $11) 7... Nc6) 6. Nge2 {[%emt 0:04:16] B01: Scandinavian Defence.} e6 {[%emt 0:01:13] [#]} 7. h3 $146 {[%emt 0:04:08][%cal Bh2h3,Bh3h4][%mdl 32]} ({Predecessor:} 7. Be3 Nc6 8. f3 Bf5 9. g4 Bg6 10. h4 h5 11. g5 Ng8 12. Nf4 Nge7 13. Bh3 {0-1 (66) Janiszewski,F (1745)-Koziol,K (2006) Walbrzych 2013}) 7... Bh5 {[%emt 0:02:23]} 8. g4 {[%emt 0:02:20] White is better.} Bg6 {[%emt 0:00:06]} 9. Bg2 {[%emt 0:00:06]} c6 {[%emt 0:01:13]} 10. Nf4 {[%emt 0:04:27]} Bd6 {[%emt 0:02:52]} 11. c5 {[%emt 0:04:59]} Bc7 {[%emt 0:03:52] [#]} 12. h4 $1 $36 {[%emt 0:01:31][%mdl 2048] Strongly threatening h5. Black is under strong pressure. White is more active.} Ba5 {[%emt 0:17:18]} (12... e5 $16 {was called for.}) 13. f3 {[%emt 0:11:48]} (13. O-O $18 {is more deadly.}) 13... h5 {[%emt 0:06:41]} 14. Nxg6 {[%emt 0:03:33]} fxg6 {[%emt 0:00:13]} 15. Qd3 {[%emt 0:00:12]} Kf7 {[%emt 0:02:09]} ({Black should play} 15... O-O) 16. Bg5 $16 {[%emt 0:00:12]} Qc7 {[%emt 0:00:29]} 17. O-O-O {[%emt 0:00:35] [#] And now Ne4 would win.} Bxc3 {[%emt 0:01:08]} 18. bxc3 {[%emt 0:00:25]} (18. gxh5 $18 Ba5 19. hxg6+ (19. Qxg6+ Kg8 $11) 19... Ke7 20. Bh3) 18... Qa5 {[%emt 0:01:51]} (18... Nbd7 $16 19. Rde1 Nf8) 19. Rd2 $18 {[%emt 0:08:02]} Qa3+ {[%emt 0:03:55]} (19... Nbd7 $142 20. Rb2 b6) 20. Rb2 {[%emt 0:52:14]} Nd5 $2 {[%emt 0:01:03]} (20... Nbd7 {keeps fighting.} 21. Kb1 Qa6) 21. Bd2 {[%emt 0:00:00]} (21. gxh5 $142 gxh5 22. Bh3) 21... Nd7 {[%emt 0:03:54]} 22. Kb1 {[%emt 0:00:00]} b5 {[%emt 0:01:27]} 23. Re1 {[%emt 0:00:00][%cal Oe1e6] aiming for Rxe6!} Rab8 $2 {[%emt 0:09:16]} (23... Rae8 24. Qc2 Qa4) 24. Rb3 {[%emt 0:00:00]} Qa6 {[%emt 0:03:36]} 25. Qe4 {[%emt 0:00:00] The board is on fire.} Nf8 {[%emt 0:00:44]} (25... Rbe8 {is a better chance.}) 26. c4 {[%emt 0:00:00]} Nf6 {[%emt 0:04:43]} 27. Qf4 {[%emt 0:00:00]} Rd8 {[%emt 0:03:48]} 28. g5 {[%emt 0:00:00]} bxc4 {[%emt 0:00:41]} 29. Bf1 {[%emt 0:00:00]} ({Worse is} 29. gxf6 cxb3 30. fxg7+ Kxg7 31. axb3 Qd3+ 32. Kb2 Kg8 $11) 29... e5 {[%emt 0:04:38]} 30. Rxe5 {[%emt 0:00:00]} Ne6 {[%emt 0:00:43]} 31. Rxe6 {[%emt 0:00:00]} Kxe6 {[%emt 0:00:37]} 32. gxf6 {[%emt 0:00:00]} gxf6 {[%emt 0:01:11]} 33. Rb4 {[%emt 0:00:00]} (33. Bh3+ $142 f5 34. Qe5+ Kf7 35. Qc7+ Kg8 36. Qxd8+ Kh7 37. Qe7+ Kg8 38. Rb8+ Qc8 39. Rxc8#) 33... Qc8 {[%emt 0:01:53]} 34. Bxc4+ {[%emt 0:00:00] White mates.} Ke7 {[%emt 0:00:11]} 35. Qe4+ {[%emt 0:00:00]} Kf8 {[%emt 0:00:26]} 36. Qxg6 {[%emt 0:00:00] Weighted Error Value: White=0.23 (precise) /Black=0.94} 1-0

[Event "21st IPCA World Championship 2022"]
[Site "Ashdod"]
[Date "2022.05.10"]
[Round "2.7"]
[White "Shapiro, Benny"]
[Black "Shchukina, Ekaterina"]
[Result "1-0"]
[ECO "A57"]
[WhiteElo "1884"]
[BlackElo "1496"]
[Annotator "NA RC COMBH"]
[PlyCount "67"]
[EventDate "2022.05.09"]
[EventType "swiss"]
[EventCountry "ISR"]
[SourceTitle "playchess.com"]
[Source "ChessBase"]
[SourceQuality "1"]
[TimeControl "5400+30"]

1. d4 {[%emt 0:00:05]} Nf6 {[%emt 0:00:10]} 2. Nf3 {[%emt 0:00:12]} g6 {[%emt 0:01:16]} 3. c4 {[%emt 1:31:43]} c5 4. d5 {[%emt 0:00:00]} b5 {[%emt 0:01:02]} 5. a4 {[%emt 0:00:00]} bxc4 {[%emt 0:02:17]} 6. Nc3 {[%emt 0:00:00]} d6 {[%emt 0:01:53]} 7. Nd2 {[%emt 0:00:00]} Nbd7 {[%emt 0:02:42]} 8. f4 {[%emt 0:00:00]} Bb7 {[%emt 0:04:10]} 9. e4 {[%emt 0:00:00]} Bg7 {[%emt 0:03:03]} 10. a5 {[%emt 0:03:30]} O-O {[%emt 1:18:57]} 11. Bxc4 {[%emt 0:00:30]} Qc8 $2 {[%emt 0:00:30]} (11... Ne8 $11 {and Black is okay.}) 12. a6 {[%emt 0:00:00]} Bxd5 $18 {[%emt 0:00:00]} 13. Bxd5 {[%emt 0:00:00]} ({But not} 13. exd5 $6 Nb6 14. Qf3 Rb8 $18) 13... Rb8 {[%emt 0:00:00]} 14. Bb7 {[%emt 0:00:00]} Qc7 {[%emt 0:00:00]} 15. O-O {[%emt 0:00:00]} Nb6 {[%emt 0:00:00]} 16. Nb5 {[%emt 0:00:00]} Qd7 {[%emt 0:00:00]} 17. Nxa7 {[%emt 0:00:00]} Rxb7 {[%emt 0:00:00]} 18. axb7 {[%emt 0:00:00]} Qxb7 {[%emt 0:00:00]} 19. Nb5 {[%emt 0:00:00]} Qc6 {[%emt 0:00:00]} 20. Nc3 {[%emt 0:00:00]} Nfd7 {[%emt 0:00:00]} 21. Nf3 {[%emt 0:00:00]} c4 {[%emt 0:00:00]} 22. Be3 {[%emt 0:00:00]} Nc5 {[%emt 0:00:00]} 23. Bd4 {[%emt 0:00:00]} Nd3 {[%emt 0:00:00]} 24. Bxg7 {[%emt 0:00:00]} Kxg7 {[%emt 0:00:00]} 25. g3 {[%emt 0:00:00]} Nxb2 {[%emt 0:00:00]} 26. Qd4+ {[%emt 0:00:00]} Kg8 {[%emt 0:00:00]} 27. Nd5 {[%emt 0:00:00]} Nxd5 {[%emt 0:00:00]} 28. exd5 {[%emt 0:00:00]} Qb5 {[%emt 0:00:00]} 29. Rfb1 {[%emt 0:00:00]} Rb8 {[%emt 0:00:00]} 30. Ra2 {[%emt 0:00:00]} c3 {[%emt 0:00:00]} 31. Qxc3 {[%emt 0:00:00]} Qxd5 {[%emt 0:00:00]} 32. Raxb2 {[%emt 0:00:00]} Rxb2 {[%emt 0:00:00]} 33. Rxb2 {[%emt 0:00:00]} Qd1+ {[%emt 0:00:00]} 34. Kg2 {[%emt 0:00:00]} 1-0

[Event "21st IPCA World Championship 2022"]
[Site "Ashdod"]
[Date "2022.05.10"]
[Round "2.8"]
[White "Oliel, Yehonatan"]
[Black "Alperovich, Asher"]
[Result "0-1"]
[ECO "B27"]
[WhiteElo "1535"]
[BlackElo "1865"]
[Annotator "NA RC COMBH"]
[PlyCount "69"]
[EventDate "2022.05.09"]
[EventType "swiss"]
[EventCountry "ISR"]
[SourceTitle "playchess.com"]
[Source "ChessBase"]
[SourceQuality "1"]
[TimeControl "5400+30"]

1. e4 {[%emt 0:00:57]} c5 {[%emt 0:00:06]} 2. Nf3 {[%emt 0:00:37]} g6 {[%emt 0:00:04]} 3. d4 {[%emt 0:00:56]} cxd4 {[%emt 0:01:35]} 4. Qxd4 {[%emt 0:02:42]} Nf6 {[%emt 0:00:27]} 5. Bb5 {[%emt 0:05:16]} a6 {[%emt 0:01:52]} 6. Ba4 {[%emt 0:06:16]} b5 {[%emt 0:02:25]} 7. Bb3 {[%emt 0:00:19]} Nc6 {[%emt 0:00:56]} 8. Qd3 {[%emt 0:01:38]} Bg7 {[%emt 0:04:47]} 9. Nc3 {[%emt 0:01:54]} O-O {[%emt 0:03:20]} 10. Be3 {[%emt 0:04:52]} d6 {[%emt 0:37:14]} 11. O-O-O {[%emt 0:01:48]} (11. O-O $15 {might be stronger.}) 11... Bb7 {[%emt 0:02:07]} 12. Nd2 {[%emt 0:06:39]} Rc8 {[%emt 0:03:27]} 13. f3 {[%emt 0:03:50]} Qa5 {[%emt 0:01:00]} 14. g4 {[%emt 0:03:30]} Nb4 {[%emt 0:02:06]} 15. Qf1 {[%emt 0:07:56] [#]} Rxc3 $1 {[%emt 0:36:34]} 16. bxc3 {[%emt 0:02:03]} Nxa2+ {[%emt 0:00:00]} 17. Bxa2 {[%emt 0:01:39]} Qxa2 {[%emt 0:00:00]} 18. Nb1 {[%emt 0:01:24]} d5 {[%emt 0:00:00]} 19. e5 {[%emt 0:05:03]} Nd7 {[%emt 0:00:00]} 20. f4 {[%emt 0:00:31]} Rc8 {[%emt 0:00:00]} 21. Bd4 {[%emt 0:03:18]} Nc5 {[%emt 0:00:00]} 22. h4 $2 {[%emt 0:13:42]} (22. Bxc5 $17 {is the only way for White.} Rxc5 23. Qf2) 22... b4 {[%emt 0:00:00]} ({Worse is} 22... Na4 23. Kd2 $17) 23. Qh3 {[%emt 0:03:22]} Ne4 {[%emt 0:00:00]} (23... b3 $142 {[%csl Gb3][%cal Ra2c2]} 24. Qh2 bxc2 25. Qxc2 Nb3+ 26. Qxb3 Qxb3) 24. Rd3 {[%emt 0:06:46]} a5 {[%emt 0:02:15]} 25. Rh2 {[%emt 0:04:12]} Ba6 {[%emt 0:00:32]} 26. Re3 {[%emt 0:01:57]} a4 {[%emt 0:02:43]} 27. cxb4 {[%emt 0:01:14]} a3 {[%emt 0:00:00]} 28. Rxa3 {[%emt 0:01:39]} Qc4 {[%emt 0:00:00]} 29. c3 $4 {[%emt 0:02:18]} Qxd4 $1 {[%emt 0:00:24]} 30. Rxa6 {[%emt 0:00:40]} Nxc3 {[%emt 0:00:26]} 31. Rd2 {[%emt 0:05:24]} Nxb1+ {[%emt 0:00:38]} 32. Kxb1 {[%emt 0:00:31]} Qxd2 {[%emt 0:00:07]} 33. Qa3 {[%emt 0:01:30]} Qc2+ {[%emt 0:00:57]} (33... Rc2 $142 34. Ra8+ Bf8 35. Rxf8+ Kxf8 36. Qa8+ Kg7 37. Qh8+ Kxh8 38. h5 Qd1#) 34. Ka1 {[%emt 0:00:14]} f6 $19 {[%emt 0:00:29]} (34... Qd1+ $142 35. Ka2 Rc2+ 36. Qb2 Rxb2+ 37. Kxb2 Qe2+ 38. Kc3 Qxa6 39. Kb3 Qc4+ 40. Ka4 d4 41. f5 d3 42. fxg6 d2 43. gxh7+ Kxh7 44. h5 Qa6+ 45. Kb3 d1=Q+ 46. Kc3 Bxe5#) 35. Ra8 {[%emt 0:00:30]} 0-1

[Event "21st IPCA World Championship 2022"]
[Site "Ashdod"]
[Date "2022.05.10"]
[Round "2.9"]
[White "Aleksandrova, Aleksandra"]
[Black "Volodarsky, Michael"]
[Result "1-0"]
[ECO "D00"]
[WhiteElo "1687"]
[BlackElo "1400"]
[Annotator "NA RC COMBH"]
[PlyCount "83"]
[EventDate "2022.05.09"]
[EventType "swiss"]
[EventCountry "ISR"]
[SourceTitle "playchess.com"]
[Source "ChessBase"]
[SourceQuality "1"]
[TimeControl "5400+30"]

1. d4 {[%emt 0:00:03]} d5 {[%emt 0:00:08]} 2. e3 {[%emt 0:00:11]} Nf6 {[%emt 0:00:29]} 3. Bd3 {[%emt 0:00:07]} e6 {[%emt 0:01:05]} 4. Nd2 {[%emt 0:00:05]} c5 {[%emt 0:00:53]} 5. c3 {[%emt 0:00:06]} Nc6 {[%emt 0:00:46]} 6. f4 {[%emt 0:00:19]} cxd4 {[%emt 0:00:50]} 7. exd4 {[%emt 0:00:33]} Bd6 {[%emt 0:01:12]} 8. g3 {[%emt 0:00:33]} Bd7 {[%emt 0:01:54]} 9. Qe2 {[%emt 0:02:37]} Qc7 {[%emt 0:04:04]} 10. Ngf3 {[%emt 0:00:38]} Ng4 {[%emt 0:05:07]} 11. O-O {[%emt 0:06:19]} f6 {[%emt 0:03:46]} 12. Ne5 {[%emt 0:10:23]} Ngxe5 {[%emt 0:08:37]} 13. fxe5 {[%emt 0:01:02]} Be7 {[%emt 0:11:03]} 14. Qh5+ {[%emt 0:00:52]} Kd8 {[%emt 0:00:10]} 15. Qf7 {[%emt 0:04:27]} fxe5 {[%emt 0:06:21]} 16. Qxg7 {[%emt 0:00:44]} Re8 {[%emt 0:02:03]} 17. Bxh7 {[%emt 0:01:07]} e4 {[%emt 0:04:35]} 18. Bg6 {[%emt 0:02:19]} Qd6 {[%emt 0:00:07]} 19. Bxe8 {[%emt 0:00:36]} Bxe8 {[%emt 0:00:04]} 20. Nb3 {[%emt 0:00:38]} b6 {[%emt 0:00:18]} 21. a4 {[%emt 0:04:19]} a5 {[%emt 0:00:34]} 22. Be3 {[%emt 0:01:59]} Ra7 {[%emt 0:00:20]} 23. Qg8 {[%emt 0:01:03]} Qd7 {[%emt 0:06:24]} 24. Rf7 {[%emt 0:02:32]} Kc7 {[%emt 0:01:00]} 25. Rh7 {[%emt 0:00:17]} Kb7 {[%emt 0:03:11]} 26. Rf1 {[%emt 0:05:31]} Ka6 {[%emt 0:01:25]} 27. Qg4 {[%emt 0:00:34]} Qc8 {[%emt 0:04:12]} 28. Qe2+ {[%emt 0:03:45]} Kb7 {[%emt 0:00:28]} 29. Qb5 {[%emt 0:02:29]} Kb8 {[%emt 0:09:05]} 30. Rh8 {[%emt 0:03:35]} Rb7 {[%emt 0:08:00]} 31. Nd2 {[%emt 0:06:16]} Rd7 {[%emt 0:05:41]} 32. Rxe8 {[%emt 0:00:53]} Qxe8 {[%emt 0:00:02]} 33. Qxc6 {[%emt 0:00:10]} Bh4 {[%emt 0:01:35]} 34. Qxb6+ {[%emt 0:00:48]} Rb7 {[%emt 0:00:44]} 35. Bf4+ {[%emt 0:00:41]} Ka8 {[%emt 0:00:41]} 36. Qxa5+ {[%emt 0:00:49]} Ra7 {[%emt 0:00:09]} 37. Qb5 {[%emt 0:39:40]} Qg8 {[%emt 0:00:32]} 38. Qc6+ {[%emt 0:00:00]} Rb7 {[%emt 0:00:23]} 39. Nb3 {[%emt 0:00:00]} e3 {[%emt 0:00:17]} 40. Nc5 {[%emt 0:01:30]} Qg7 {[%emt 0:01:15]} 41. Qa6+ {[%emt 0:00:00]} Ra7 {[%emt 0:00:23]} 42. Qc8# {[%emt 0:00:00]} 1-0

[Event "21st IPCA World Championship 2022"]
[Site "Ashdod"]
[Date "2022.05.10"]
[Round "2.10"]
[White "Klein, Djimmy"]
[Black "Mekus, Manuela"]
[Result "0-1"]
[ECO "E94"]
[WhiteElo "1392"]
[BlackElo "1644"]
[Annotator "NA RC COMBH"]
[PlyCount "62"]
[EventDate "2022.05.09"]
[EventType "swiss"]
[EventCountry "ISR"]
[SourceTitle "playchess.com"]
[Source "ChessBase"]
[SourceQuality "1"]
[TimeControl "5400+30"]

1. d4 {[%emt 0:00:04]} Nf6 {[%emt 0:00:14]} 2. c4 {[%emt 0:00:12]} g6 {[%emt 0:00:20]} 3. Nc3 {[%emt 0:00:18]} Bg7 {[%emt 0:00:11]} 4. e4 {[%emt 0:00:38]} d6 {[%emt 0:00:09]} 5. Be2 {[%emt 0:01:06]} O-O {[%emt 0:00:14]} 6. Nf3 {[%emt 0:01:12]} Nbd7 {[%emt 0:00:21]} 7. O-O {[%emt 0:01:15]} e5 {[%emt 0:02:24]} 8. Bg5 {[%emt 0:02:43]} c6 {[%emt 0:01:34]} 9. a4 {[%emt 0:00:28]} a5 {[%emt 0:01:58]} 10. Ne1 {[%emt 0:02:53]} h6 {[%emt 0:00:29]} 11. Bh4 {[%emt 1:25:11]} g5 {[%emt 0:00:09]} 12. Bg3 {[%emt 0:00:00]} Qb6 {[%emt 0:01:48]} 13. Qd2 {[%emt 0:00:00]} exd4 {[%emt 0:01:43]} 14. Bxd6 {[%emt 0:00:00]} dxc3 {[%emt 0:00:28]} 15. bxc3 {[%emt 0:00:00]} Nxe4 {[%emt 0:00:35]} 16. Qd3 {[%emt 0:00:00]} Nxd6 {[%emt 0:00:42]} 17. Qxd6 {[%emt 0:00:00]} Qb2 {[%emt 0:04:21]} 18. Qd1 {[%emt 0:00:00]} Qxc3 {[%emt 0:00:23]} 19. Rc1 {[%emt 0:00:00]} Qd4 {[%emt 0:00:29]} 20. Qc2 {[%emt 0:00:00]} Nc5 {[%emt 0:01:27]} 21. Nf3 {[%emt 0:00:00]} Qb2 {[%emt 0:00:58]} 22. Qd1 {[%emt 0:00:00]} Be6 {[%emt 0:01:04]} 23. Rc2 {[%emt 0:00:00]} Qb3 {[%emt 0:05:06]} 24. Qc1 {[%emt 0:00:00]} Rad8 {[%emt 0:05:48]} 25. Rd1 {[%emt 0:00:00]} Rxd1+ {[%emt 0:03:36]} 26. Bxd1 {[%emt 0:00:00]} Qxa4 {[%emt 0:04:42]} 27. Rc3 {[%emt 0:00:00]} Qb4 {[%emt 0:01:58]} 28. Re3 {[%emt 0:00:00]} Qxc4 {[%emt 0:00:42]} 29. Bc2 {[%emt 0:00:00]} f5 {[%emt 0:01:19]} 30. Ne5 {[%emt 0:00:00]} Bxe5 {[%emt 0:01:03]} 31. Rxe5 {[%emt 0:00:00]} Nd3 {[%emt 0:03:18]} 0-1

[Event "21st IPCA World Championship 2022"]
[Site "Ashdod"]
[Date "2022.05.10"]
[Round "2.11"]
[White "Vardi, Moshe"]
[Black "Freiberg, Doron"]
[Result "1-0"]
[ECO "B80"]
[WhiteElo "1631"]
[BlackElo "1244"]
[Annotator "NA RC COMBH"]
[PlyCount "41"]
[EventDate "2022.05.09"]
[EventType "swiss"]
[EventCountry "ISR"]
[SourceTitle "playchess.com"]
[Source "ChessBase"]
[SourceQuality "1"]
[TimeControl "5400+30"]

1. e4 {[%emt 0:05:43]} c5 {[%emt 0:00:42]} 2. Nf3 {[%emt 0:00:02]} Nc6 {[%emt 0:00:12]} 3. d4 {[%emt 0:00:04]} cxd4 {[%emt 0:00:07]} 4. Nxd4 {[%emt 0:00:05]} e6 {[%emt 0:00:10]} 5. Nc3 {[%emt 0:00:31]} Be7 {[%emt 0:01:17]} 6. Nxc6 {[%emt 0:00:41]} bxc6 {[%emt 0:00:10]} 7. f4 {[%emt 0:03:34]} d6 {[%emt 0:05:56]} 8. Bd3 {[%emt 0:02:05]} Nf6 {[%emt 0:04:19]} 9. O-O {[%emt 0:02:04]} O-O {[%emt 0:01:47]} 10. Kh1 {[%emt 0:01:36]} Ne8 {[%emt 0:12:32]} 11. f5 {[%emt 0:01:32]} Bg5 {[%emt 0:03:15]} 12. Qg4 {[%emt 0:02:39]} Bxc1 {[%emt 0:01:56]} 13. Raxc1 {[%emt 0:00:19]} Nf6 {[%emt 0:06:36]} 14. Qh4 {[%emt 0:01:31]} h6 {[%emt 0:07:16]} 15. Rf3 {[%emt 0:01:34]} Nh7 {[%emt 0:03:49]} 16. f6 {[%emt 0:06:59]} e5 {[%emt 0:09:55]} 17. Rcf1 {[%emt 0:02:33]} Re8 {[%emt 0:12:39]} 18. Rg3 {[%emt 0:03:02]} Ng5 {[%emt 0:02:21]} 19. Rxg5 {[%emt 0:00:31]} hxg5 {[%emt 0:00:16]} 20. Qxg5 {[%emt 0:00:02]} g6 {[%emt 0:00:36]} 21. Qh6 {[%emt 1:03:53]} 1-0

[Event "21st IPCA World Championship 2022"]
[Site "Ashdod"]
[Date "2022.05.10"]
[Round "2.12"]
[White "Frumin, Rebeka"]
[Black "Pilimon, Zbigniew"]
[Result "1-0"]
[ECO "B90"]
[WhiteElo "1319"]
[BlackElo "1620"]
[Annotator "NA RC COMBH"]
[PlyCount "71"]
[EventDate "2022.05.09"]
[EventType "swiss"]
[EventCountry "ISR"]
[SourceTitle "playchess.com"]
[Source "ChessBase"]
[SourceQuality "1"]
[TimeControl "5400+30"]

1. e4 {[%emt 0:00:11]} c5 {[%emt 0:00:15]} 2. Nf3 {[%emt 0:00:47]} d6 {[%emt 0:01:09]} 3. d4 {[%emt 0:01:28]} cxd4 {[%emt 0:00:15]} 4. Nxd4 {[%emt 0:01:16]} Nf6 {[%emt 0:00:18]} 5. Nc3 {[%emt 0:01:44]} a6 {[%emt 0:00:28]} 6. a4 {[%emt 0:02:16]} e5 {[%emt 0:01:35]} 7. Nf3 {[%emt 0:02:06]} Be6 {[%emt 0:03:37]} 8. Bg5 {[%emt 0:03:43]} Be7 {[%emt 0:02:53]} 9. Bxf6 {[%emt 0:02:04]} Bxf6 {[%emt 0:01:55]} 10. Nd5 {[%emt 0:03:09]} Be7 {[%emt 0:02:50]} 11. Ra3 {[%emt 0:02:50]} Nd7 {[%emt 0:01:04]} 12. Rd3 {[%emt 0:01:55]} Nc5 {[%emt 0:01:55]} 13. Re3 {[%emt 0:01:45]} Nxa4 {[%emt 0:04:15]} 14. c4 {[%emt 0:02:03]} Nb6 {[%emt 0:03:46]} 15. Be2 {[%emt 0:03:30]} Rc8 {[%emt 0:01:27]} 16. b3 {[%emt 0:01:38]} O-O {[%emt 0:02:55]} 17. O-O {[%emt 0:01:48]} f5 {[%emt 0:04:24]} 18. exf5 {[%emt 0:03:20]} Bxd5 {[%emt 0:02:54]} 19. cxd5 {[%emt 0:01:29]} Rc5 {[%emt 0:01:02]} 20. g4 {[%emt 0:02:06]} Nxd5 {[%emt 0:00:58]} 21. Bc4 {[%emt 0:01:23]} Qa5 {[%emt 0:02:39]} 22. b4 {[%emt 0:05:48]} Qxb4 {[%emt 0:00:33]} 23. Bxd5+ {[%emt 0:00:12]} Kh8 {[%emt 0:00:19]} 24. Re4 {[%emt 0:01:23]} Qb6 {[%emt 0:03:42]} 25. Be6 {[%emt 0:03:06]} Qc6 {[%emt 0:02:44]} 26. Re3 {[%emt 0:01:39]} b5 {[%emt 0:02:49]} 27. Nd2 {[%emt 0:07:34]} Bg5 {[%emt 0:07:20]} 28. Re2 {[%emt 0:02:09]} Bf4 {[%emt 0:01:10]} 29. Ne4 {[%emt 0:00:22]} Rc1 {[%emt 0:01:12]} 30. Qxd6 {[%emt 0:00:54]} Rxf1+ {[%emt 0:12:26]} 31. Kxf1 {[%emt 0:00:22]} Qxd6 {[%emt 0:01:16]} 32. Nxd6 {[%emt 0:00:13]} h6 {[%emt 0:00:25]} 33. Nf7+ {[%emt 0:00:16]} Kh7 {[%emt 0:00:20]} 34. Nxe5 {[%emt 0:00:20]} Bxh2 {[%emt 0:00:22]} 35. f3 {[%emt 0:00:39]} Bf4 {[%emt 0:02:06]} 36. Ng6 {[%emt 0:41:02]} 1-0